fUSD/lending_fUSD_20240425
["ID","MTS","AMOUNT","RATE_DAILY","PERIOD"]
[323492101,1714049449410,-500.0,0.00012719,2]
[323492102,1714049449420,-500.0,0.00012719,2]
[323492103,1714049449429,-500.0,0.00012719,2]
[323492104,1714049449438,-500.0,0.00012719,2]
[323492105,1714049449448,-500.0,0.00012719,2]
[323492106,1714049449457,-732.9,0.00012719,2]
[323492107,1714049449467,-245.06,0.00012719,2]
[323492108,1714049449476,-500.0,0.00012719,2]
[323492109,1714049449485,-500.0,0.00012719,2]
[323492110,1714049449494,-500.0,0.00012719,2]
[323492111,1714049449504,-500.0,0.00012719,2]
[323492112,1714049449513,-500.0,0.00012719,2]
[323492113,1714049449523,-608.59,0.00012719,2]
[323492114,1714049449533,-500.0,0.00012719,2]
[323492115,1714049449542,-500.0,0.00012719,2]
[323492116,1714049449552,-500.0,0.00012719,2]
[323492117,1714049449562,-500.0,0.00012719,2]
[323492118,1714049449572,-500.0,0.00012719,2]
[323492119,1714049449582,-500.0,0.00012719,2]
[323492120,1714049449592,-1301.24,0.00012719,2]
[323492121,1714049449601,-500.0,0.00012719,2]
[323492122,1714049449613,-500.0,0.00012719,2]
[323492123,1714049449623,-500.0,0.00012719,2]
[323492124,1714049449633,-500.0,0.00012719,2]
[323492125,1714049449647,-1049.0,0.00012719,2]
[323492126,1714049449658,-332.45,0.00012719,2]
[323492127,1714049449667,-500.0,0.00012719,2]
[323492128,1714049449676,-500.0,0.00012719,2]
[323492129,1714049449686,-500.0,0.00012719,2]
[323492130,1714049449696,-500.0,0.00012719,2]
[323492131,1714049449706,-500.0,0.00012719,2]
[323492132,1714049449716,-204.75,0.00012719,2]
[323492133,1714049449727,-500.0,0.00012719,2]
[323492134,1714049449736,-561.44,0.00012719,2]
[323492135,1714049449746,-500.0,0.00012719,2]
[323492136,1714049449755,-601.69,0.00012719,2]
[323492137,1714049449765,-1235.39636741,0.00012719,2]
[323492138,1714049450073,-679.65363259,0.00012719,2]
[323492139,1714049450084,-500.0,0.00012719,2]
[323492140,1714049450094,-923.33,0.00012719,2]
[323492141,1714049450104,-500.0,0.00012719,2]
[323492142,1714049450114,-500.0,0.00012719,2]
[323492143,1714049450125,-500.0,0.00012719,2]
[323492144,1714049450136,-180.15,0.00012759,2]
[323492145,1714049450152,-164.37354978,0.0001277,2]
[323492146,1714049450162,-1103.88388,0.0001277,2]
[323492147,1714049450172,-2.44394085,0.00012796,2]
[323492148,1714049450354,-997.55605915,0.00012796,2]
[323492149,1714049450365,-500.0,0.00012796,2]
[323492150,1714049450375,-715.27780891,0.00012798,2]
[323492151,1714049450385,-181.04995257,0.000128,2]
[323492152,1714049450398,-157.55747168,0.000128,2]
[323492153,1714049450408,-150.0,0.000128,2]
[323492154,1714049450418,-177.05834528,0.000128,2]
[323492155,1714049450430,-220.73595912,0.000128,2]
[323492156,1714049450447,-1006.0,0.000128,2]
[323492157,1714049450457,-715.27780891,0.00012815,2]
[323492158,1714049450466,-715.27780891,0.00012832,2]
[323492159,1714049450475,-1000.0,0.00012835,2]
[323492160,1714049450485,-1000.0,0.00012835,2]
[323492161,1714049450494,-1000.0,0.00012835,2]
[323492162,1714049450504,-1000.0,0.00012835,2]
[323492163,1714049450513,-1000.0,0.00012835,2]
[323492164,1714049450525,-1000.0,0.00012835,2]
[323492165,1714049450540,-532.20392158,0.00012835,2]
[323492166,1714049450554,-467.79607842,0.00012835,2]
[323492167,1714049450563,-1000.0,0.00012835,2]
[323492168,1714049450573,-1000.0,0.00012835,2]
[323492169,1714049450582,-1000.0,0.00012835,2]
[323492170,1714049450592,-1000.0,0.00012835,2]
[323492171,1714049450602,-1000.0,0.00012835,2]
[323492172,1714049450611,-1000.0,0.00012835,2]
[323492173,1714049450621,-619.8262,0.00012835,2]
[323492174,1714049450631,-715.27780891,0.00012849,2]
[323492175,1714049450644,-157.55747166,0.0001285,2]
[323492176,1714049450654,-278.20370312,0.0001285,2]
[323492177,1714049450663,-715.27780891,0.00012866,2]
[323492178,1714049450673,-715.27780891,0.00012883,2]
[323492179,1714049450682,-6433.8317705,0.00012889,2]
[323492180,1714049450692,-1487.3391981,0.00012889,2]
[323492181,1714049450701,-3098.0118373,0.00012889,2]
[323492182,1714049450711,-1485.5003047,0.00012889,2]
[323492183,1714049450721,-4995.40019717,0.00012898,2]
[323492184,1714049450734,-258.16788,0.00012898,2]
[323492185,1714049450747,-2081.86663743,0.00012898,2]
[323492186,1714049450759,-282.47099925,0.00012898,2]
[323492187,1714049450772,-361.26999989,0.00012898,2]
[323492188,1714049450784,-1837.05392822,0.00012898,2]
[323492189,1714049450795,-156.34589899,0.00012898,2]
[323492190,1714049450805,-157.01880557,0.00012898,2]
[323492191,1714049450816,-2304.91029282,0.00012898,2]
[323492192,1714049450826,-447.15642642,0.00012898,2]
[323492193,1714049450836,-1364.81284018,0.00012899,3]
[323492194,1714049450846,-881.37,0.00012899,2]
[323492195,1714049450856,-43356.82135763,0.00012899,2]
[323492196,1714049450866,-544.0,0.000129,2]
[323492197,1714049450877,-277554.79718797,0.000129,5]
[323492198,1714049450966,-1759.75852569,0.000129,5]
[323492199,1714049450979,-7160.06582164,0.000129,5]
[323492200,1714049450992,-6555.782394,0.000129,5]
[323492201,1714049451007,-13294.11552001,0.000129,5]
[323492202,1714049451033,-425.138316,0.000129,5]
[323492203,1714049451046,-392.4809798,0.000129,5]
[323492204,1714049451058,-1014.21908066,0.000129,5]
[323492205,1714049451406,-49910.97904296,0.000129,5]
[323492206,1714049451418,-809.68945,0.000129,5]
[323492207,1714049451457,-12182.11968285,0.000129,5]
[323492208,1714049451469,-127656.51448511,0.000129,5]
[323492209,1714049451481,-25574.52361261,0.000129,5]
[323492210,1714049451492,-6662.26233005,0.000129,5]
[323492211,1714049451504,-1160.73983021,0.000129,5]
[323492212,1714049451912,288.34603203,0.00010991,2]
[323492213,1714049495441,169.68988242,0.00010991,2]
[323492216,1714050228732,-155.0,8.95e-05,2]
[323492217,1714050228759,-2180.17381365,8.95e-05,2]
[323492218,1714050228789,-307.58,8.951e-05,2]
[323492219,1714050228816,-2360.54775782,9.117e-05,2]
[323492220,1714050228844,-313.84557091,9.118e-05,2]
[323492221,1714050228872,-155.0,9.118e-05,2]
[323492222,1714050228900,-167.40337534,9.118e-05,2]
[323492223,1714050228927,-155.0,9.118e-05,2]
[323492224,1714050228953,-155.0,9.118e-05,2]
[323492225,1714050228980,-200.35068603,9.119e-05,2]
[323492226,1714050229008,-270.09879625,9.12e-05,2]
[323492227,1714050256059,-192.79472849,8.949e-05,2]
[323492228,1714050256085,-3313.20527151,9.12e-05,2]
[323492229,1714050431216,-155.0,9.113e-05,2]
[323492230,1714050431242,-69.76139639,9.113e-05,2]
[323492231,1714050553148,-325.78301861,9.108e-05,2]
[323492232,1714050553178,-2180.17381365,9.108e-05,2]
[323492233,1714050553204,-1281.14146774,9.109e-05,2]
[323492234,1714050556104,-2851.11917851,9.109e-05,2]
[323492235,1714050556128,-706.66913894,9.11e-05,2]
[323492236,1714050556152,-150.0,9.115e-05,2]
[323492237,1714050556180,-871.83841886,9.116e-05,2]
[323492238,1714050556206,-1472.40755537,9.117e-05,2]
[323492248,1714050632247,-817.35,0.00010808,2]
[323492249,1714050632258,-2015.67,0.00010865,2]
[323492250,1714050632268,-159.56,0.00010869,2]
[323492251,1714050632278,-1351.89634566,0.0001098,2]
[323492252,1714050632288,-532.89332388,0.00010981,2]
[323492253,1714050632297,-150.99,0.00010981,2]
[323492254,1714050632306,-1638.53,0.00010981,2]
[323492255,1714050632316,-15476.57911974,0.00010991,2]
[323492256,1714050632346,-28072.1171105,0.00010991,2]
[323492257,1714050632355,-1138.14757,0.00010991,2]
[323492258,1714050632364,-9529.59999999,0.00011,2]
[323492259,1714050632374,-499.99,0.00011,2]
[323492260,1714050632385,-238.0,0.000111,2]
[323492261,1714050632395,-2445.17272256,0.00011208,2]
[323492262,1714050632405,-307.58,0.00011215,2]
[323492263,1714050632414,-238.0,0.0001132,2]
[323492264,1714050632424,-350.51,0.00011425,2]
[323492265,1714050632434,-436.96,0.00011425,2]
[323492266,1714050632444,-215.5,0.00011425,2]
[323492267,1714050632454,-522.13,0.000115,2]
[323492268,1714050632464,-238.0,0.0001155,2]
[323492269,1714050632473,-157.46268323,0.00011562,2]
[323492270,1714050632482,-150.0,0.00011688,2]
[323492271,1714050632491,-150.0,0.00011688,2]
[323492272,1714050632501,-667.77,0.00011696,2]
[323492273,1714050632510,-11945.1084,0.00011696,2]
[323492275,1714050632520,-1279.3347,0.00011699,2]
[323492278,1714050632530,-4441.6825,0.00011699,2]
[323492281,1714050632539,-53298.7396,0.000117,2]
[323492284,1714050632548,-238.0,0.0001178,2]
[323492286,1714050632558,-548.33960924,0.00011792,2]
[323492288,1714050632568,-500.0,0.00011795,2]
[323492290,1714050632579,-8724.85510447,0.00011796,2]
[323492292,1714050632592,-1527.56071964,0.00011796,2]
[323492304,1714050637799,-263.8,0.00011796,2]
[323492305,1714050637811,-4340.73437191,0.00011796,2]
[323492306,1714050637939,-1e-08,0.00011698,2]
[323492307,1714050637967,-1415.55229999,0.00011698,2]
[323492308,1714050637976,-4089.26080398,0.00011796,2]
[323492309,1714050637986,-155.0,0.00011798,2]
[323492310,1714050637995,-641.61516885,0.00011798,2]
[323492311,1714050638005,-167.49276775,0.00011798,2]
[323492312,1714050638014,-181.67008199,0.00011798,2]
[323492313,1714050638023,-315.86465182,0.00011798,2]
[323492314,1714050638033,-174.62077598,0.00011798,2]
[323492315,1714050638042,-188.05142974,0.00011798,2]
[323492316,1714050638051,-849.62250384,0.00011798,2]
[323492317,1714050638061,-155.93762568,0.00011798,2]
[323492318,1714050638070,-311.30445828,0.00011798,2]
[323492319,1714050638083,-175.76437735,0.00011798,2]
[323492320,1714050638092,-195.83253818,0.00011798,2]
[323492321,1714050638102,-487.22450388,0.00011798,2]
[323492322,1714050638112,-4321.85408576,0.00011798,2]
[323492323,1714050638121,-35859.96790995,0.00011798,2]
[323492324,1714050638131,-273.0908316,0.00011798,2]
[323492325,1714050638140,-1069.68814457,0.00011798,2]
[323492326,1714050638150,-2213.88669959,0.00011798,2]
[323492327,1714050638159,-247.55578873,0.00011798,2]
[323492328,1714050638168,-4316.6010683,0.00011798,2]
[323492329,1714050638178,-790.0621686,0.00011798,2]
[323492330,1714050638189,-302.02811429,0.00011798,2]
[323492331,1714050638200,-621.61066355,0.00011798,2]
[323492332,1714050638211,-216.42941215,0.00011798,2]
[323492333,1714050638221,-455.1790143,0.00011798,2]
[323492334,1714050638230,-156.38696711,0.00011798,2]
[323492335,1714050638239,-500.0,0.00011798,2]
[323492337,1714050638249,-946.98,0.00011798,2]
[323492338,1714050638258,-500.0,0.00011798,2]
[323492340,1714050638268,-445.48954029,0.00011798,2]
[323492342,1714050638280,-3386.02092332,0.00011798,2]
[323492344,1714050638289,-180.96473717,0.00011798,2]
[323492346,1714050638299,-320.6079258,0.00011798,2]
[323492349,1714050638310,-500.0,0.00011798,2]
[323492350,1714050638320,-500.0,0.00011798,2]
[323492354,1714050638331,-500.0,0.00011798,2]
[323492356,1714050638342,-500.0,0.00011798,2]
[323492359,1714050638351,-500.0,0.00011798,2]
[323492362,1714050638360,-419.86072365,0.00011798,2]
[323492366,1714050638371,-19441.01791274,0.00011799,2]
[323492369,1714050638381,-500.0,0.00011799,2]
[323492372,1714050638391,-500.0,0.00011799,2]
[323492373,1714050638401,-500.0,0.00011799,2]
[323492375,1714050638410,-500.0,0.00011799,2]
[323492377,1714050638420,-395.06819824,0.00011799,2]
[323492379,1714050638438,-104.93180176,0.00011799,2]
[323492380,1714050638448,-500.0,0.00011799,2]
[323492381,1714050638457,-500.0,0.00011799,2]
[323492382,1714050638466,-500.0,0.00011799,2]
[323492383,1714050638476,-500.0,0.00011799,2]
[323492384,1714050638486,-500.0,0.00011799,2]
[323492385,1714050638495,-500.0,0.00011799,2]
[323492386,1714050638505,-205.59822143,0.00011799,2]
[323492387,1714050638514,-1925.98,0.00011799,2]
[323492388,1714050638523,-500.0,0.00011799,2]
[323492389,1714050638533,-500.0,0.00011799,2]
[323492390,1714050638542,-3668.88,0.00011799,2]
[323492391,1714050638551,-500.0,0.00011799,2]
[323492392,1714050638560,-500.0,0.00011799,2]
[323492393,1714050638570,-500.0,0.00011799,2]
[323492394,1714050638579,-500.0,0.00011799,2]
[323492395,1714050638589,-500.0,0.00011799,2]
[323492396,1714050638598,-500.0,0.00011799,2]
[323492397,1714050638608,-500.0,0.00011799,2]
[323492398,1714050638617,-1202.98,0.00011799,2]
[323492399,1714050638626,-500.0,0.00011799,2]
[323492400,1714050638635,-500.0,0.00011799,2]
[323492401,1714050638645,-500.0,0.00011799,2]
[323492402,1714050638654,-611.50097945,0.00011799,2]
[323492403,1714050638664,-500.0,0.00011799,2]
[323492404,1714050638673,-2742.97,0.00011799,2]
[323492405,1714050638682,-500.0,0.00011799,2]
[323492406,1714050638691,-500.0,0.00011799,2]
[323492407,1714050638700,-500.0,0.00011799,2]
[323492408,1714050638709,-500.0,0.00011799,2]
[323492409,1714050638718,-500.0,0.00011799,2]
[323492410,1714050638935,-2216.76,0.00011799,2]
[323492411,1714050638944,-500.0,0.00011799,2]
[323492412,1714050638954,-500.0,0.00011799,2]
[323492413,1714050638963,-500.0,0.00011799,2]
[323492414,1714050638972,-500.0,0.00011799,2]
[323492415,1714050638981,-117221.49842057,0.000118,5]
[323492416,1714050638997,-91914.41053317,0.000118,5]
[323492417,1714050639007,-500.0,0.00011894,2]
[323492418,1714050639016,-500.0,0.00011894,2]
[323492419,1714050639026,-166.42637839,0.00011894,2]
[323492420,1714050639034,-500.0,0.00011894,2]
[323492421,1714050639043,-500.0,0.00011894,2]
[323492422,1714050639052,-500.0,0.00011894,2]
[323492423,1714050639062,-500.0,0.00011894,2]
[323492424,1714050639071,-500.0,0.00011894,2]
[323492425,1714050639079,-3824.88,0.00011894,2]
[323492426,1714050639091,-500.0,0.00011894,2]
[323492427,1714050639100,-500.0,0.00011894,2]
[323492428,1714050639109,-500.0,0.00011894,2]
[323492429,1714050639118,-500.0,0.00011894,2]
[323492430,1714050639128,-13867.23,0.00011894,2]
[323492431,1714050639137,-500.0,0.00011894,2]
[323492432,1714050639146,-500.0,0.00011894,2]
[323492433,1714050639155,-500.0,0.00011894,2]
[323492434,1714050639165,-500.0,0.00011896,2]
[323492435,1714050639175,-500.0,0.00011896,2]
[323492436,1714050639184,-500.0,0.00011896,2]
[323492437,1714050639194,-666.44,0.00011896,2]
[323492438,1714050639207,-500.0,0.00011896,2]
[323492439,1714050639216,-500.0,0.00011896,2]
[323492440,1714050639225,-500.0,0.00011896,2]
[323492441,1714050639234,-500.0,0.00011896,2]
[323492442,1714050639248,-500.0,0.00011896,2]
[323492443,1714050639257,-500.0,0.00011896,2]
[323492444,1714050639266,-4268.18,0.00011896,2]
[323492445,1714050639276,-500.0,0.00011896,2]
[323492446,1714050639286,-500.0,0.00011896,2]
[323492447,1714050639296,-366.94316858,0.00011896,2]
[323492448,1714050639305,-215.39,0.00011896,2]
[323492449,1714050639314,-324.06218464,0.00011896,2]
[323492450,1714050639323,-500.0,0.00011896,2]
[323492451,1714050639334,-500.0,0.00011896,2]
[323492452,1714050639343,-697.98,0.00011896,2]
[323492453,1714050639352,-500.0,0.00011896,2]
[323492454,1714050639362,-500.0,0.00011896,2]
[323492455,1714050639372,-500.0,0.00011896,2]
[323492456,1714050639381,-500.0,0.00011896,2]
[323492457,1714050639390,-500.0,0.00011896,2]
[323492458,1714050639399,-500.0,0.00011896,2]
[323492459,1714050639409,-609.82887267,0.00011896,2]
[323492460,1714050639419,-1504.2,0.00011896,2]
[323492461,1714050639429,-435.57199887,0.00011896,2]
[323492462,1714050639438,-500.0,0.00011896,2]
[323492463,1714050639448,-1040.26,0.00011896,2]
[323492464,1714050639459,-500.0,0.00011896,2]
[323492465,1714050639468,-500.0,0.00011896,2]
[323492466,1714050639478,-500.0,0.00011896,2]
[323492467,1714050639487,-1536.26,0.00011896,2]
[323492468,1714050639497,-400.17,0.00011896,2]
[323492469,1714050639507,-1446.89,0.00011896,2]
[323492470,1714050639517,-500.0,0.00011896,2]
[323492472,1714050639527,-500.0,0.00011896,2]
[323492473,1714050639536,-500.0,0.00011896,2]
[323492474,1714050639546,-500.0,0.00011896,2]
[323492475,1714050639555,-500.0,0.00011896,2]
[323492476,1714050639565,-242.28309461,0.00011896,2]
[323492477,1714050639574,-500.0,0.00011896,2]
[323492478,1714050639585,-869.87,0.00011896,2]
[323492479,1714050639594,-500.0,0.00011896,2]
[323492480,1714050639603,-500.0,0.00011896,2]
[323492481,1714050639612,-500.0,0.00011896,2]
[323492482,1714050639621,-580.53635876,0.00011896,2]
[323492483,1714050639629,-602.15,0.00011897,2]
[323492484,1714050639638,-500.0,0.00011897,2]
[323492485,1714050639647,-500.0,0.00011897,2]
[323492486,1714050639656,-500.0,0.00011897,2]
[323492487,1714050639666,-571.84,0.00011897,2]
[323492488,1714050639674,-500.0,0.00011897,2]
[323492489,1714050639683,-500.0,0.00011897,2]
[323492490,1714050639693,-245.95,0.00011897,2]
[323492491,1714050639702,-500.0,0.00011897,2]
[323492492,1714050639711,-500.0,0.00011897,2]
[323492493,1714050639720,-500.0,0.00011897,2]
[323492494,1714050639729,-500.0,0.00011897,2]
[323492495,1714050639738,-500.0,0.00011897,2]
[323492496,1714050639747,-439.38,0.00011897,2]
[323492497,1714050639756,-440.23,0.00011897,2]
[323492498,1714050639765,-500.0,0.00011897,2]
[323492499,1714050639774,-500.0,0.00011897,2]
[323492500,1714050639782,-500.0,0.00011897,2]
[323492501,1714050639791,-372.17,0.00011897,2]
[323492502,1714050639800,-500.0,0.00011897,2]
[323492503,1714050639810,-535.87,0.00011897,2]
[323492504,1714050639819,-500.0,0.00011897,2]
[323492505,1714050639829,-500.0,0.00011897,2]
[323492506,1714050639840,-500.0,0.00011897,2]
[323492507,1714050639848,-563.84,0.00011897,2]
[323492508,1714050639857,-500.0,0.00011897,2]
[323492509,1714050639867,-500.0,0.00011897,2]
[323492510,1714050639875,-318.57099991,0.00011897,2]
[323492511,1714050639885,-500.0,0.00011897,2]
[323492512,1714050639894,-500.0,0.00011897,2]
[323492513,1714050639903,-500.0,0.00011897,2]
[323492514,1714050639914,-500.0,0.00011897,2]
[323492515,1714050639923,-153.51880162,0.00012,2]
[323492516,1714050639932,-150.0,0.00012,2]
[323492517,1714050639941,-150.0,0.00012,2]
[323492518,1714050639950,-238.0,0.0001201,2]
[323492519,1714050639959,-910.54,0.00012027,2]
[323492520,1714050639968,-498.64,0.00012027,2]
[323492521,1714050639977,-413.76,0.00012027,2]
[323492522,1714050639986,-910.54,0.00012027,2]
[323492523,1714050639995,-413.76,0.00012027,2]
[323492524,1714050640004,-910.54,0.00012027,2]
[323492525,1714050640014,-910.54,0.00012027,2]
[323492526,1714050640023,-910.54,0.00012027,2]
[323492527,1714050640032,-161.26623473,0.0001206,2]
[323492528,1714050640041,-5547.56885349,0.00012069,2]
[323492529,1714050640050,-2096.1915,0.0001207,2]
[323492530,1714050640061,-53784.1475,0.0001207,2]
[323492531,1714050640070,-1000.0,0.0001207,2]
[323492532,1714050640078,-10000.0,0.00012071,2]
[323492533,1714050640090,-500.0,0.00012072,2]
[323492534,1714050640099,-946.98,0.00012072,2]
[323492535,1714050640108,-500.0,0.00012072,2]
[323492536,1714050640118,-500.0,0.00012072,2]
[323492537,1714050640127,-500.0,0.00012072,2]
[323492538,1714050640136,-500.0,0.00012072,2]
[323492539,1714050640146,-554.34,0.00012072,2]
[323492540,1714050640156,-500.0,0.00012072,2]
[323492541,1714050640165,-500.0,0.00012073,2]
[323492542,1714050640174,-500.0,0.00012073,2]
[323492543,1714050640183,-500.0,0.00012073,2]
[323492544,1714050640193,-500.0,0.00012073,2]
[323492545,1714050640203,-500.0,0.00012073,2]
[323492546,1714050640214,-500.0,0.00012073,2]
[323492547,1714050640223,-500.0,0.00012073,2]
[323492548,1714050640233,-500.0,0.00012073,2]
[323492549,1714050640244,-1925.98,0.00012073,2]
[323492550,1714050640254,-500.0,0.00012073,2]
[323492551,1714050640264,-500.0,0.00012073,2]
[323492552,1714050640275,-3668.88,0.00012073,2]
[323492554,1714050640284,-500.0,0.00012073,2]
[323492555,1714050640294,-500.0,0.00012073,2]
[323492556,1714050640304,-500.0,0.00012073,2]
[323492557,1714050640313,-500.0,0.00012073,2]
[323492558,1714050640322,-1202.98,0.00012073,2]
[323492559,1714050640333,-500.0,0.00012073,2]
[323492561,1714050640343,-500.0,0.00012073,2]
[323492562,1714050640352,-2742.97,0.00012073,2]
[323492563,1714050640361,-500.0,0.00012073,2]
[323492564,1714050640371,-500.0,0.00012073,2]
[323492565,1714050640381,-500.0,0.00012073,2]
[323492566,1714050640390,-500.0,0.00012073,2]
[323492567,1714050640400,-500.0,0.00012073,2]
[323492568,1714050640409,-2216.76,0.00012073,2]
[323492569,1714050640419,-500.0,0.00012073,2]
[323492570,1714050640428,-500.0,0.00012073,2]
[323492571,1714050640437,-817.35,0.00012158,2]
[323492572,1714050640447,-500.0,0.00012168,2]
[323492573,1714050640456,-500.0,0.00012168,2]
[323492574,1714050640467,-500.0,0.00012168,2]
[323492575,1714050640476,-500.0,0.00012168,2]
[323492576,1714050640486,-500.0,0.00012168,2]
[323492577,1714050640495,-431.49,0.00012168,2]
[323492578,1714050640504,-3824.88,0.00012168,2]
[323492579,1714050640513,-500.0,0.00012168,2]
[323492580,1714050640522,-500.0,0.00012168,2]
[323492581,1714050640531,-500.0,0.00012168,2]
[323492582,1714050640539,-500.0,0.00012168,2]
[323492583,1714050640548,-13867.23,0.00012168,2]
[323492584,1714050640557,-500.0,0.00012168,2]
[323492585,1714050640567,-501.69586997,0.00012168,2]
[323492586,1714050640580,-500.0,0.00012169,2]
[323492587,1714050640590,-793.99,0.00012169,2]
[323492588,1714050640599,-500.0,0.00012169,2]
[323492589,1714050640608,-500.0,0.00012169,2]
[323492590,1714050640616,-500.0,0.00012169,2]
[323492591,1714050640626,-500.0,0.00012169,2]
[323492592,1714050640636,-613.57471778,0.00012169,2]
[323492593,1714050640646,-258.58,0.00012169,2]
[323492594,1714050640656,-500.0,0.00012169,2]
[323492595,1714050640665,-500.0,0.00012169,2]
[323492596,1714050640676,-500.0,0.0001217,2]
[323492597,1714050640684,-1909.61,0.0001217,2]
[323492598,1714050640694,-500.0,0.0001217,2]
[323492599,1714050640706,-666.44,0.0001217,2]
[323492600,1714050640715,-549.75155059,0.0001217,2]
[323492601,1714050640725,-500.0,0.0001217,2]
[323492602,1714050640734,-437.88549,0.0001217,2]
[323492603,1714050640743,-500.0,0.0001217,2]
[323492604,1714050640752,-500.0,0.0001217,2]
[323492605,1714050640762,-500.0,0.0001217,2]
[323492606,1714050640771,-272.8825667,0.0001217,2]
[323492607,1714050640781,-4268.18,0.0001217,2]
[323492608,1714050640790,-500.0,0.0001217,2]
[323492609,1714050640800,-961.32,0.0001217,2]
[323492610,1714050640809,-500.0,0.0001217,2]
[323492611,1714050640818,-697.98,0.0001217,2]
[323492612,1714050640827,-500.0,0.0001217,2]
[323492613,1714050640840,-500.0,0.0001217,2]
[323492614,1714050640849,-500.0,0.0001217,2]
[323492615,1714050640858,-500.0,0.0001217,2]
[323492616,1714050640867,-446.48998545,0.0001217,2]
[323492617,1714050640876,-1504.2,0.0001217,2]
[323492618,1714050640886,-500.0,0.0001217,2]
[323492619,1714050640896,-1040.26,0.0001217,2]
[323492620,1714050640906,-500.0,0.0001217,2]
[323492621,1714050640916,-500.0,0.0001217,2]
[323492622,1714050640927,-611.81012403,0.0001217,2]
[323492623,1714050640938,-1536.26,0.0001217,2]
[323492624,1714050640948,-1446.89,0.0001217,2]
[323492625,1714050640957,-500.0,0.0001217,2]
[323492626,1714050640968,-462.72856898,0.0001217,2]
[323492627,1714050640978,-384.13343323,0.0001217,2]
[323492628,1714050640989,-500.0,0.0001217,2]
[323492629,1714050641000,-500.0,0.0001217,2]
[323492630,1714050641010,-500.0,0.0001217,2]
[323492631,1714050641021,-869.87,0.0001217,2]
[323492632,1714050641031,-500.0,0.0001217,2]
[323492633,1714050641041,-500.0,0.0001217,2]
[323492634,1714050641052,-500.0,0.0001217,2]
[323492635,1714050641065,-500.0,0.00012171,2]
[323492636,1714050641076,-500.0,0.00012171,2]
[323492637,1714050641088,-500.0,0.00012171,2]
[323492638,1714050641098,-500.0,0.00012171,2]
[323492639,1714050641109,-500.0,0.00012171,2]
[323492640,1714050641120,-500.0,0.00012171,2]
[323492641,1714050641129,-500.0,0.00012171,2]
[323492642,1714050641139,-700.94,0.00012178,2]
[323492643,1714050641148,-522.13,0.00012178,2]
[323492644,1714050641158,-150.0,0.00012192,2]
[323492645,1714050641169,-150.0,0.00012192,2]
[323492646,1714050641180,-150.0,0.00012192,2]
[323492647,1714050641192,-150.0,0.00012192,2]
[323492648,1714050641205,-238.0,0.0001224,2]
[323492649,1714050641216,-1031.73,0.00012247,2]
[323492650,1714050641226,-155.70790337,0.00012249,2]
[323492651,1714050641237,-164.81131492,0.00012249,2]
[323492652,1714050641248,-157.41911592,0.00012249,2]
[323492653,1714050641258,-1777.50509516,0.00012249,2]
[323492654,1714050641268,-157.88409074,0.00012249,2]
[323492655,1714050641279,-447.29038375,0.0001225,2]
[323492656,1714050641290,-155.09863485,0.0001225,2]
[323492657,1714050641300,-5097.31123817,0.00012251,2]
[323492658,1714050641311,-10000.0,0.00012251,2]
[323492659,1714050641321,-455.92631642,0.000123,2]
[323492660,1714050641333,-10000.0,0.00012328,2]
[323492661,1714050641344,-10000.0,0.00012328,2]